[Event "Silves Open 2025"]
[Site "Fissul"]
[Date "2025.03.06"]
[Round "8.9"]
[White "Vasques, Antonio Pedro Freixi"]
[Black "Dias, Ivo Rodrigues"]
[Result "0-1"]
[Annotator "TA"]
[ECO "C50"]
[WhiteElo "2246"]
[BlackElo "2097"]
[PlyCount "110"]
[EventDate "2025.03.03"]
[EventType "swiss"]
[EventCountry "POR"]
[SourceTitle "playchess.com"]
[Source "ChessBase"]
[SourceQuality "1"]
[TimeControl "5400+30"]

{[%evp 16,110,27,-11,4,-10,-6,-3,-10,-6,-9,-14,-8,-20,-19,-9,45,46,65,-31,0,0,-7,-8,-9,-25,-24,-54,-46,-54,-50,-45,-35,-81,-77,-81,-99,-85,-82,-64,-61,-69,-62,-29,0,0,0,-18,0,-7,0,0,52,0,171,69,391,264,248,0,0,-81,-83,-83,-83,-91,-93,-79,-95,-517,-493,-605,-607,-680,-673,-708,-696,-690,-672,-910,-818,-1017,-1009,-1125,-1118,-1446,-1731,-1864,-1851,-4910,-6729,-4806,-4399,-29977,-29978,-29967,-11966]} 1. e4 {[%emt 0:02:07]} e5 {[%emt 0:00:30]} 2. Nf3 {[%emt 0:00:16]} Nc6 {[%emt 0:00:10]} 3. Bc4 {[%emt 0:01:33]} Bc5 {[%emt 0:00:08]} 4. O-O {[%emt 0:02:29]} Nf6 {[%emt 0:00:17]} 5. d3 {[%emt 0:01:23]} O-O {[%emt 0:01:39]} 6. Nc3 {[%emt 0:06:07]} h6 {[%emt 0:01:06]} 7. a3 {[%emt 0:03:33]} d6 {[%emt 0:06:55]} 8. h3 {[%emt 0:06:16] 8.Na4 gains popularity.} Be6 {[%emt 0:01:15]} 9. Nd5 {[%emt 0:16:57]} a6 {[%emt 0:25:27] C50: Hungarian Defence and Giuoco Pianissimo.} 10. Ba2 {[%emt 0:04:27]} Ba7 $146 {[%emt 0:02:02]} (10... Bxd5 11. exd5 Ne7 12. c4 Nf5 13. b4 Ba7 14. Kh1 Re8 {0-1 Trukhin,D (1797)-Khangueva,A (1884) Irkutsk Baykal op 2016 (5)}) 11. Be3 {[%emt 0:14:19]} Bxd5 {[%emt 0:06:08] The position is equal.} 12. exd5 {[%emt 0:02:57]} Ne7 {[%emt 0:00:02]} 13. Bxa7 {[%emt 0:01:08]} Rxa7 {[%emt 0:00:06]} 14. d4 {[%emt 0:05:14]} e4 {[%emt 0:03:59]} (14... Nfxd5 $6 15. dxe5 dxe5 16. Nxe5 $16) 15. Nd2 {[%emt 0:00:04]} Nf5 {[%emt 0:03:27]} (15... Nexd5 16. Bxd5 Nxd5 17. Nxe4 $14) (15... c6 $11) 16. Re1 $14 {[%emt 0:00:15]} Re8 {[%emt 0:01:49][%cal Oe4e3]} 17. Nf1 {[%emt 0:00:27]} ({White should play} 17. Nxe4 $1 $14 Nxe4 (17... Rxe4 18. Rxe4 Nxe4 19. Qf3 $16) 18. Qg4) 17... Qd7 {[%emt 0:13:36]} 18. c4 {[%emt 0:06:12]} c6 {[%emt 0:05:03]} 19. dxc6 {[%emt 0:04:43]} bxc6 {[%emt 0:00:15]} 20. Qd2 {[%emt 0:06:29]} a5 {[%emt 0:01:28]} 21. d5 {[%emt 0:03:42]} c5 {[%emt 0:02:50]} 22. Bb1 {[%emt 0:03:21]} Nd4 {[%emt 0:01:09] Black plays on the queen side and is better} 23. Bc2 {[%emt 0:00:24] Inhibits Nb3.} Rb7 {[%emt 0:01:49]} 24. Bd1 {[%emt 0:00:16]} (24. Rab1 $15 {should be considered.}) 24... Reb8 $17 {[%emt 0:02:06] Black is much more active.} 25. Rb1 {[%emt 0:00:39][%cal Of1g3]} Qf5 {[%emt 0:01:39][%cal Oe4e3]} 26. Re3 {[%emt 0:02:07]} Qg6 {[%emt 0:01:00][%cal Od4f3] Inhibits Ng3.} 27. Ng3 {[%emt 0:01:57][%cal Oh3h4]} h5 {[%emt 0:02:00] Black has a king side majority} 28. h4 $1 {[%emt 0:00:05][%cal Ob2b3] [#]} a4 $1 {[%emt 0:02:20]} 29. Bxa4 {[%emt 0:02:38]} Qg4 {[%emt 0:03:15]} (29... Ng4 $5 30. Rxe4 Kh7 $16) 30. Bd1 {[%emt 0:00:42]} Qxh4 {[%emt 0:00:15]} 31. b4 {[%emt 0:00:05]} Qg5 {[%emt 0:00:48]} 32. b5 $1 {[%emt 0:00:29][%cal Og3f1]} (32. Bc2 $2 Ng4 $19) 32... h4 $36 {[%emt 0:01:09][%mdl 2048] Black fights for an advantage.} 33. Nf1 {[%emt 0:00:07]} Re7 {[%emt 0:02:53]} (33... Qg6 $11 34. Qa2 Nh7) 34. a4 {[%emt 0:00:41]} (34. Rh3 $14 Qf5 (34... Qxd2 35. Nxd2 g5 36. a4 $16) 35. Qa2) 34... Rbe8 $2 {[%emt 0:00:29]} (34... Nf5 $11 {and Black stays safe.}) 35. a5 $18 {[%emt 0:00:35]} Ng4 $2 {[%emt 0:02:50][%mdl 8192]} (35... Qg6 $1 $14 36. Ra1 Ng4) 36. Bxg4 {[%emt 0:01:19]} Qxg4 {[%emt 0:00:06]} 37. Nh2 {[%emt 0:00:14]} ({White has to play} 37. Qd1 $1 $18 {[%cal Rd1g4]} Qxd1 (37... Nf3+ 38. Kh1 $11) 38. Rxd1) 37... Qg6 $11 {[%emt 0:01:09]} 38. Qd1 {[%emt 0:02:29] [#] Wards off Nf3+} (38. Rb2 $1 $11 {keeps the balance.} Qg5 39. b6 Nf3+ 40. Rxf3 (40. Nxf3 exf3 41. Rxf3 Re1+ 42. Kh2 Qxd2 $18) 40... Qxd2 41. Rxd2 exf3 42. Nxf3) 38... f5 $1 $17 {[%emt 0:00:55]} 39. b6 {[%emt 0:00:30] aiming for Rh3.} f4 {[%emt 0:00:17]} 40. Qg4 {[%emt 0:00:39][%csl Od4] Strong Square Black (d4)} (40. Rh3 f3 41. g4 e3 (41... hxg3 $2 42. Rxg3 Qf5 43. Kh1 $19) 42. fxe3 Rxe3 $19) 40... Qxg4 {[%emt 0:01:04]} 41. Nxg4 {[%emt 0:00:01]} fxe3 {[%emt 0:00:11]} 42. fxe3 {[%emt 0:00:47][%mdl 8192] [#]} (42. Nxe3 $17 {was the crucial defense.} Ra8 43. b7 Rxb7 (43... Rxa5 $2 44. b8=Q+ Kh7 45. Qxd6 $18) 44. Rxb7) 42... Nc2 $1 $19 {[%emt 0:00:24]} (42... Ne2+ 43. Kh2 Nc3 44. Rb3 $17) 43. Rb5 {[%emt 0:00:42]} Nb4 {[%emt 0:04:02]} 44. Nf2 {[%emt 0:00:04]} Rb7 {[%emt 0:00:32]} 45. Nd1 {[%emt 0:00:32]} Kf7 {[%emt 0:00:17]} 46. Nc3 {[%emt 0:00:05]} Kf6 {[%emt 0:00:10] White must now prevent ...Ke5.} 47. Na4 {[%emt 0:00:33]} Rc8 {[%emt 0:00:33]} 48. Kf2 {[%emt 0:00:28]} Ke5 {[%emt 0:00:15]} 49. Ke2 {[%emt 0:00:04]} g5 {[%emt 0:00:05]} 50. Rxb4 {[%emt 0:00:19]} cxb4 {[%emt 0:00:13]} 51. a6 {[%emt 0:00:03]} Rbb8 {[%emt 0:02:20]} 52. b7 {[%emt 0:00:46] [#]} Rxb7 $3 {[%emt 0:00:16]} 53. axb7 {[%emt 0:00:52]} Rb8 {[%emt 0:00:01]} (53... Rxc4 $2 54. Kd1 (54. b8=R $2 {too greedy.} b3 $19) (54. b8=Q Rc2+ 55. Ke1 Rxg2 $18) 54... Kf6 55. b8=Q $18 (55. b8=R b3 $17)) 54. c5 {[%emt 0:00:06]} dxc5 {[%emt 0:00:55]} 55. Nxc5 {[%emt 0:00:38]} Kxd5 {[%emt 0:00:24] Black used his chance.   Weighted Error Value: White=0.52/Black=0.21 (precise)   Loses game:     	White=1     	Black=2      Missed win:     	White=1     	---        Mistake:       	White=4     	Black=2      Inaccurate:     	White=2     	---        OK:         	White=6     	Black=13     Best:        	White=7     	Black=3      Strong:       	White=2     	Black=2} 0-1

[Event "Silves Open 2025"]
[Site "Fissul"]
[Date "2025.03.06"]
[Round "8.11"]
[White "Monteiro, Paulo Alexandre G"]
[Black "Santos, Antonio P"]
[Result "0-1"]
[Annotator "TA"]
[ECO "D87"]
[WhiteElo "2221"]
[BlackElo "2209"]
[PlyCount "106"]
[EventDate "2025.03.03"]
[EventType "swiss"]
[EventCountry "POR"]
[SourceTitle "playchess.com"]
[Source "ChessBase"]
[SourceQuality "1"]
[TimeControl "5400+30"]

{[%evp 22,106,35,10,33,-7,6,2,9,0,0,0,4,10,4,0,0,0,0,-22,-30,-32,0,0,0,0,0,-35,-36,-72,-63,-62,-67,-63,-59,-63,-70,-79,-5,-22,11,7,14,-9,-8,-20,-10,-12,0,0,0,-12,-4,-14,-8,-7,-7,-8,-8,-8,-8,-8,-17,-23,-8,-581,-570,-579,-588,-578,-575,-1217,-1097,-1255,-1356,-1185,-879,-2624,-1114,-4646,-4622,-29956,-29958,-6303,-4964,-29972,-29976]} 1. d4 {[%emt 0:00:11]} Nf6 {[%emt 0:00:14]} 2. c4 {[%emt 0:00:09]} g6 {[%emt 0:00:09]} 3. Nc3 {[%emt 0:00:18]} d5 {[%emt 0:00:09]} 4. cxd5 {[%emt 0:00:28]} Nxd5 {[%emt 0:00:10]} 5. e4 {[%emt 0:00:08]} Nxc3 {[%emt 0:00:09]} 6. bxc3 {[%emt 0:00:07]} Bg7 {[%emt 0:00:11]} 7. Bc4 {[%emt 0:00:30]} c5 {[%emt 0:00:24]} 8. Ne2 {[%emt 0:00:20]} Nc6 {[%emt 0:01:05]} 9. Be3 {[%emt 0:00:13]} O-O {[%emt 0:01:05]} 10. O-O {[%emt 0:00:17]} Qc7 {[%emt 0:00:09]} 11. Rc1 {[%emt 0:01:47]} Rd8 {[%emt 0:00:10] 11...b6 is more advanced technology.} 12. f3 {[%emt 0:09:38]} a6 {[%emt 0:07:38] D87: Exchange Grünfeld: Classical Line: Variations without ...cxd4.} 13. Qd2 {[%emt 0:13:42]} b5 {[%emt 0:00:39] A sharp opening} 14. Bd5 {[%emt 0:02:37]} e6 {[%emt 0:02:22] The position is equal. Wards off c4} 15. Bxc6 {[%emt 0:00:08]} Qxc6 {[%emt 0:00:08]} 16. Bh6 {[%emt 0:01:34]} Bb7 $146 {[%emt 0:14:52]} ({Predecessor:} 16... Bh8 17. Qe3 Bb7 18. e5 Rac8 19. Bg5 Rd7 20. Ng3 Qd5 21. Rcd1 cxd4 22. cxd4 Qxa2 {1-0 Cvitan,O (2467)-Shevchenko,K (2592) Abu Dhabi Super Blitz op 1st 2020 (4)}) 17. h4 {[%emt 0:06:26]} Bh8 {[%emt 0:26:32]} 18. Qf4 {[%emt 0:14:47]} e5 {[%emt 0:04:05]} 19. dxe5 {[%emt 0:02:22]} Qe6 {[%emt 0:00:19][%csl LRa2,LRe5]} 20. Bg5 {[%emt 0:08:04]} Bxe5 {[%emt 0:00:26]} 21. Qe3 {[%emt 0:00:13]} f6 {[%emt 0:02:20]} 22. Bf4 {[%emt 0:01:40]} Qe7 {[%emt 0:14:19]} 23. Rcd1 {[%emt 0:04:06]} a5 {[%emt 0:00:20]} (23... Rxd1 24. Rxd1 a5 25. h5 $14) 24. Rd3 {[%emt 0:12:59]} b4 {[%emt 0:19:18]} 25. Bxe5 {[%emt 0:08:24]} fxe5 {[%emt 0:00:28]} (25... Qxe5 26. cxb4 Rxd3 (26... cxb4 27. Rfd1 $11) (26... axb4 27. Rfd1 $14) 27. Qxd3 axb4 (27... cxb4 28. Rd1 $11) 28. Rd1 $15) 26. h5 {[%emt 0:00:48]} Ba6 $1 {[%emt 0:01:07]} (26... gxh5 $6 27. Ng3 $16) 27. Rxd8+ {[%emt 0:01:48]} Rxd8 {[%emt 0:00:08][%cal Ba8d8,Bd8d2,Bd2b2,Bb2b3][%mdl 32]} 28. hxg6 {[%emt 0:00:16]} hxg6 {[%emt 0:00:11]} 29. Rc1 {[%emt 0:01:45][%cal Bf1c1,Bc1c5,Bc5a5,Ba5a7][%mdl 32]} Qd6 {[%emt 0:02:13] Black is more active.} ({Black should try} 29... Kg7 $17 {and ...Rd3 would now be decisive} 30. c4 Bc8) 30. cxb4 $11 {[%emt 0:03:15]} Qd2 {[%emt 0:02:57]} (30... cxb4 {simplifies} 31. Kh2 a4 32. Ng1 Rc8) 31. Qxd2 {[%emt 0:04:35]} (31. Qxc5 $2 Bxe2 (31... Qxe2 32. Qb6 $11) 32. bxa5 Qg5 $19 (32... Qxa2 $2 33. Qb6 $18)) 31... Rxd2 {[%emt 0:00:03]} 32. Rxc5 {[%emt 0:00:31][%cal Ob4b5] [#] and b5! should not be overlooked} Bxe2 {[%emt 0:00:55]} 33. Rxa5 {[%emt 0:00:09][%mdl 4096] Endgame KRB-KR} Rb2 {[%emt 0:00:25]} 34. a3 {[%emt 0:00:29]} Rb3 {[%emt 0:00:10]} 35. Kf2 {[%emt 0:00:17]} Bc4 {[%emt 0:00:17]} 36. Ra7 {[%emt 0:02:22]} Rb2+ {[%emt 0:00:46]} 37. Kg1 {[%emt 0:00:24]} Bf7 {[%emt 0:00:51]} 38. Ra5 {[%emt 0:00:16]} Rb3 {[%emt 0:00:21]} 39. b5 {[%emt 0:00:37]} Kg7 {[%emt 0:00:12]} 40. a4 {[%emt 0:00:26]} Kf6 {[%emt 0:00:20]} 41. Ra6+ {[%emt 0:00:18]} Kg5 {[%emt 0:00:02]} 42. Kf2 {[%emt 0:00:51]} Rb2+ {[%emt 0:00:07]} 43. Ke3 $2 {[%emt 0:00:37][%mdl 8192] White does not recover from this.} (43. Kg3 $1 $11 {and White is okay.}) 43... Bc4 $1 $19 {[%emt 0:00:03][%csl Gc4][%cal Rb2e2]} ({Weaker is} 43... Rxg2 44. Kd3 $17) 44. f4+ {[%emt 0:00:33]} exf4+ {[%emt 0:00:01]} 45. Kd4 {[%emt 0:00:05]} Bf1 {[%emt 0:00:22]} 46. e5 {[%emt 0:00:24]} Bxg2 {[%emt 0:00:10]} 47. Rf6 {[%emt 0:00:57]} Rb4+ {[%emt 0:00:13]} 48. Kc5 {[%emt 0:00:08]} Rxa4 {[%emt 0:00:02]} 49. b6 {[%emt 0:00:10]} Ra1 {[%emt 0:00:15]} 50. Rf7 {[%emt 0:00:40]} Ra5+ {[%emt 0:00:36]} 51. Kd4 {[%emt 0:01:24]} Rd5+ {[%emt 0:00:13]} 52. Kc4 {[%emt 0:00:23]} Rxe5 {[%emt 0:00:09] ( -> ...Rf5)} 53. b7 {[%emt 0:00:28] [#]} Bxb7 $1 {[%emt 0:00:21] Weighted Error Value: White=0.90/Black=0.30  Loses game:     	White=1     	---        Mistake:       	---       	Black=1      Inaccurate:     	White=3     	Black=2      OK:         	White=16    	Black=12     Best:        	White=3     	Black=3      Strong:       	---       	Black=2} 0-1

[Event "Silves Open 2025"]
[Site "Fissul"]
[Date "2025.03.06"]
[Round "8.12"]
[White "Kuegel, Tobias"]
[Black "Albuquerque, Eduardo Ferreira"]
[Result "1/2-1/2"]
[Annotator "TA"]
[ECO "E09"]
[WhiteElo "2423"]
[BlackElo "1897"]
[PlyCount "155"]
[EventDate "2025.03.03"]
[EventType "swiss"]
[EventCountry "POR"]
[SourceTitle "playchess.com"]
[Source "ChessBase"]
[SourceQuality "1"]
[TimeControl "5400+30"]

{[%evp 24,155,17,15,49,23,15,13,82,15,88,12,58,57,57,61,62,62,70,64,85,84,88,66,79,71,67,64,67,56,86,67,94,88,191,175,204,198,288,267,355,349,347,327,351,327,314,-45,-37,-119,-110,-135,-152,-122,-118,-151,-140,-183,-151,-182,-195,-179,-79,-177,-177,-177,-177,-177,-177,-177,-177,-173,-150,-318,-164,-162,-111,-112,-49,-226,-218,-209,0,0,0,-244,-230,-226,-200,-204,-161,-204,-218,-283,-275,-476,-391,-391,-362,-375,-330,-327,-216,-216,-216,-216,-216,-6295,-216,-6620,-5459,-5114,-8,-8,-8,-8,-8,-8,-8,-8,-8,-8,-8,-8,-8,-8,-8,-8,-8,-8,-8,-8,-8,-8]} 1. Nf3 {[%emt 0:00:02]} Nf6 {[%emt 0:00:11]} 2. c4 {[%emt 0:00:02]} e6 {[%emt 0:00:16]} 3. g3 {[%emt 0:00:05]} d5 {[%emt 0:00:30]} 4. Bg2 {[%emt 0:00:02]} Be7 {[%emt 0:00:52]} 5. O-O {[%emt 0:00:02]} O-O {[%emt 0:00:27]} 6. b3 {[%emt 0:00:02]} Nbd7 {[%emt 0:05:20]} 7. Bb2 {[%emt 0:00:45]} c6 {[%emt 0:03:04]} 8. d4 {[%emt 0:03:36]} b6 {[%emt 0:01:44]} 9. Nbd2 {[%emt 0:00:02]} Bb7 {[%emt 0:00:47]} 10. Qb1 {[%emt 0:01:54]} Rc8 {[%emt 0:07:06]} 11. e4 {[%emt 0:00:27]} dxe4 {[%emt 0:02:31]} 12. Nxe4 {[%emt 0:00:02]} Nxe4 {[%emt 0:01:08]} 13. Qxe4 {[%emt 0:00:02]} Nf6 {[%emt 0:00:29] E09: Closed Catalan: Main Line: 7 Qc2 c6 8 Nbd2.} 14. Qe2 {[%emt 0:00:09]} c5 {[%emt 0:01:21]} 15. Rad1 {[%emt 0:00:37]} Qc7 {[%emt 0:04:23]} (15... cxd4 $11 16. Nxd4 (16. Bxd4 Qc7 $11) 16... Bxg2 17. Kxg2 Qc7) 16. Rfe1 {[%emt 0:02:11]} (16. d5 $1 $16 {[%cal Rd5e6]}) 16... Rfe8 {[%emt 0:04:23]} (16... cxd4 $11 17. Nxd4 Bxg2 18. Kxg2 Rfd8) 17. dxc5 {[%emt 0:02:28] White has strong rooks and is better} (17. d5 $1 $16 {[%cal Rd5e6]} exd5 18. Bxf6 gxf6 19. cxd5) 17... bxc5 $146 {[%emt 0:08:34]} (17... Bxc5 $11 {should be considered.} 18. Bxf6 gxf6) (17... Qxc5 18. Ne5 Bxg2 19. Kxg2 Rcd8 20. b4 Qc7 21. a3 Rxd1 22. Rxd1 Rd8 23. Rxd8+ Qxd8 {1-0 Morais,V (1995)-Costa,J (1622) POR-ch prel Matosinhos 2012 (5.16)}) 18. Ne5 $14 {[%emt 0:00:59]} Bxg2 {[%emt 0:01:24]} 19. Kxg2 {[%emt 0:00:01]} Qb7+ {[%emt 0:11:03]} 20. Qf3 {[%emt 0:01:27]} Qxf3+ {[%emt 0:06:12]} 21. Kxf3 {[%emt 0:00:02][%csl Oe5] Strong Square White (e5)} Rc7 {[%emt 0:00:42]} 22. Bc3 {[%emt 0:00:54]} Rec8 {[%emt 0:01:07]} 23. Ba5 {[%emt 0:04:50]} Rb7 {[%emt 0:00:13]} 24. Rd3 {[%emt 0:00:07]} Kf8 {[%emt 0:01:15]} 25. Red1 {[%emt 0:00:34] White is much more active.} Ke8 {[%emt 0:00:17]} 26. g4 {[%emt 1:22:08]} g5 {[%emt 0:02:42]} 27. Ke2 {[%emt 0:00:00]} h5 {[%emt 0:05:49]} 28. h3 {[%emt 0:00:00]} h4 {[%emt 0:01:19]} (28... hxg4 $16 29. hxg4 Nh7) 29. Rf3 $1 $18 {[%emt 0:00:00]} a6 {[%emt 0:07:56]} 30. Rdd3 {[%emt 0:00:00]} Ra7 {[%emt 0:02:32]} (30... Kf8 $142 31. Kf1 (31. Bd2 Kg8 $16) 31... Kg7) 31. Bd2 {[%emt 0:00:00]} Ne4 {[%emt 0:03:15]} 32. Rxf7 {[%emt 0:00:00]} Nxd2 {[%emt 0:01:12]} 33. Kxd2 {[%emt 0:00:00]} Rcc7 {[%emt 0:01:17]} 34. Ke3 {[%emt 0:00:00]} Bf8 {[%emt 0:01:02]} 35. Rf6 {[%emt 0:00:00]} (35. Rxc7 $18 Rxc7 36. Ke4) 35... Bg7 $15 {[%emt 0:00:45]} 36. Rg6 {[%emt 0:00:00]} Bxe5 $17 {[%emt 0:00:09]} 37. Rxg5 {[%emt 0:00:00]} Bd4+ {[%emt 0:00:55]} 38. Ke4 {[%emt 0:00:00]} Bxf2 {[%emt 0:02:29]} 39. Rg8+ {[%emt 0:00:00]} Kf7 {[%emt 0:00:34]} 40. Rh8 {[%emt 0:00:00]} Bg3 {[%emt 0:01:28]} 41. Rdd8 {[%emt 0:00:00]} Kg6 {[%emt 0:02:07] Inhibits Rh6+.} 42. Rde8 {[%emt 0:00:00]} e5 {[%emt 0:04:41]} (42... Rc6 $19 {and Black stays clearly on top. Hoping for ...Rd6.} 43. Rh5 Rh7 44. Rg8+ Kf7 45. Rxh7+ Kxg8) 43. Rhg8+ {[%emt 0:00:00]} (43. Re6+ $17 Kg7 44. Reh6) 43... Rg7 $19 {[%emt 0:00:26]} 44. Re6+ {[%emt 0:00:00]} Kf7 {[%emt 0:01:09]} 45. Rxg7+ {[%emt 0:00:00]} Kxg7 {[%emt 0:00:08][%mdl 4096] Endgame KRB-KR} 46. Rc6 {[%emt 0:00:00]} Rd7 {[%emt 0:02:24]} 47. Rxc5 {[%emt 0:00:00]} Rd1 {[%emt 0:00:30]} 48. Rc7+ $2 {[%emt 0:00:00]} (48. Rc6 $17) 48... Kf8 {[%emt 0:00:53]} (48... Kg6 $142 49. Rc8 Rd4+ 50. Kf3 Rf4+ 51. Ke3 Bf2+ 52. Kd2 Bd4) 49. g5 {[%emt 0:00:00]} Re1+ {[%emt 0:00:21]} ({Black should try} 49... Rd4+ $19 50. Kf3 Rf4+ 51. Ke2 Rf2+ 52. Ke3 Rxa2) 50. Kf5 $17 {[%emt 0:00:00]} e4 {[%emt 0:00:41]} (50... Rf1+ $1 $17 51. Ke4 Re1+ 52. Kf5 e4) 51. Ra7 $2 {[%emt 0:00:00]} (51. Rc8+ $15 Kg7 52. Re8) 51... e3 $19 {[%emt 0:00:29]} 52. Ra8+ {[%emt 0:00:00]} Kg7 $2 {[%emt 0:00:09]} (52... Ke7 $1 $19 {( -> ...e2)} 53. Ra7+ Kd8 54. Ra8+ Kd7 55. Ra7+ Bc7) 53. Ra7+ $11 {[%emt 0:00:00]} Kf8 $2 {[%emt 0:00:08]} (53... Kg8 $11 54. Re7 Bd6 (54... e2 $2 55. Kg6 $19)) 54. Ra8+ $19 {[%emt 0:00:00] [#]} Ke7 $1 {[%emt 0:02:13]} 55. Ra7+ {[%emt 0:00:00]} Kd8 {[%emt 0:01:14]} 56. Ra8+ {[%emt 0:00:00]} Kd7 {[%emt 0:01:18]} 57. Ke4 {[%emt 0:00:00][%cal Og5g6]} Bf2 {[%emt 0:00:45]} 58. Kf3 {[%emt 0:03:18][%cal Og5g6]} Rg1 {[%emt 0:00:31]} 59. Rg8 $2 {[%emt 0:00:01]} (59. Rxa6 {was worth a try.} Rxg5 60. Ra7+ Kc8 61. Ke2) 59... Ke7 {[%emt 0:00:24]} 60. g6 {[%emt 0:00:43]} Rg3+ {[%emt 0:00:36]} 61. Ke2 {[%emt 0:00:01]} Kf6 {[%emt 0:00:20]} 62. c5 {[%emt 0:00:01] Strongly threatening c6.} Rxg6 {[%emt 0:00:33]} 63. Rxg6+ {[%emt 0:01:53]} Kxg6 {[%emt 0:00:05]} 64. c6 {[%emt 0:00:19] [#] White wants to mate with c7.} Bg3 $1 {[%emt 0:00:13]} 65. b4 $2 {[%emt 0:02:51]} (65. Kxe3 Kf7 66. b4) 65... Kf6 $2 {[%emt 0:00:44]} (65... Bf4 66. a4 Kf7) 66. a4 $2 {[%emt 0:02:11]} (66. Kxe3 Ke6 67. a4) 66... Ke6 {[%emt 0:00:20]} 67. b5 {[%emt 0:01:38]} axb5 $2 {[%emt 0:00:29]} (67... a5 $19 68. Kxe3 Kd5) 68. axb5 {[%emt 0:00:01] KB-K3P. The position is equal.} Kd6 {[%emt 0:00:19]} (68... Bf4 {is more complex.} 69. c7 Kd7 70. b6 Kc8) 69. Kxe3 {[%emt 0:00:23]} Kc5 {[%emt 0:00:11]} 70. Ke4 {[%emt 0:00:11]} Kxb5 {[%emt 0:00:18]} 71. c7 {[%emt 0:00:04]} Bxc7 $11 {[%emt 0:00:06] KB-KP} 72. Kf3 {[%emt 0:00:03]} Kc4 {[%emt 0:00:22]} 73. Kg4 {[%emt 0:00:01]} Bg3 {[%emt 0:00:11]} 74. Kf3 $1 {[%emt 0:00:03]} Kd3 {[%emt 0:00:14]} 75. Kg2 $1 {[%emt 0:00:01]} Ke2 {[%emt 0:00:14]} 76. Kh1 {[%emt 0:00:01]} Kf3 {[%emt 0:00:27]} 77. Kg1 {[%emt 0:00:03]} Bf2+ {[%emt 0:00:25]} 78. Kh1 {[%emt 0:00:01] White used his chance.   Weighted Error Value: White=0.42/Black=0.33  Loses game:     	White=2     	---        Missed win:     	White=1     	Black=1      Mistake:       	White=7     	Black=11     Inaccurate:     	White=2     	Black=4      OK:         	White=16    	Black=20     Best:        	White=8     	Black=6      Strong:       	White=3     	Black=2} 1/2-1/2